bitfinex/quotes_SOLUSD_20250108
["timestamp","ask_amount","ask_price","bid_price","bid_amount"]
[1736347677776,20.0,198.26,198.17,40.14462103]
[1736347677999,20.0,198.26,198.18,40.14462103]
[1736347678396,6.3497,198.29,198.2,40.14462103]
[1736347678616,6.3497,198.29,198.21,40.14462103]
[1736347679217,6.3497,198.29,198.19,40.14462103]
[1736347679905,6.3497,198.29,198.18,40.14462103]
[1736347680102,6.3497,198.29,198.2,40.14462103]
[1736347680584,6.3497,198.29,198.21,40.14462103]
[1736347680782,6.3497,198.29,198.19,40.14462103]
[1736347680991,6.3497,198.29,198.18,40.14462103]
[1736347681399,6.3497,198.29,198.19,40.14462103]
[1736347681593,6.3497,198.29,198.21,40.14462103]
[1736347681904,6.0317,198.35,198.28,40.14462103]
[1736347682076,6.0317,198.35,198.2,40.14462103]
[1736347682077,6.0317,198.35,198.29,40.14462103]
[1736347682282,6.0317,198.35,198.3,40.14462103]
[1736347682694,6.0317,198.35,198.31,40.14462103]
[1736347682897,6.0116,198.41,198.33,40.14462103]
[1736347683206,6.0116,198.41,198.32,40.14462103]
[1736347683503,6.0116,198.41,198.33,40.14462103]
[1736347683801,20.0,198.38,198.29,40.14462103]
[1736347683985,20.0,198.38,198.28,40.14462103]
[1736347684190,4.2052719,198.37,198.27,40.14462103]
[1736347684519,0.94527304,198.36,198.23,40.14462103]
[1736347684818,20.0,198.32,198.22,40.14462103]
[1736347685024,20.0,198.3,198.19,40.14462103]
[1736347685308,20.0,198.3,198.17,137.1]
[1736347685309,4.20561332,198.29,198.17,137.1]
[1736347685682,4.20561332,198.29,198.17,177.24462103]
[1736347685889,3.26,198.29,198.19,40.14462103]
[1736347686116,0.94565813,198.28,198.17,177.24462103]
[1736347686402,0.94565813,198.28,198.17,137.1]
[1736347686584,0.94565813,198.28,198.17,40.14462103]
[1736347686786,0.94565813,198.28,198.17,177.24462103]
[1736347686981,3.26,198.29,198.17,177.24462103]
[1736347687188,3.26,198.29,198.18,40.14462103]
[1736347687398,6.6086,198.24,198.13,40.14462103]
[1736347687591,1.5387,198.2,198.1,137.1]
[1736347687799,0.94611764,198.19,198.1,137.1]
[1736347687989,20.0,198.17,198.06,137.1]
[1736347688499,20.0,198.17,198.08,137.1]
[1736347688703,20.0,198.17,198.1,137.1]
[1736347688907,0.94626416,198.16,198.06,137.1]
[1736347689092,43.776884,198.19,198.05,222.68462103]
[1736347689294,0.94635232,198.18,198.06,137.1]
[1736347689494,20.0,198.13,198.05,182.54]
[1736347689707,20.0,198.13,198.05,45.44]
[1736347690309,20.0,198.13,198.0,137.1]
[1736347690310,4.18649694,198.12,198.01,137.1]
[1736347690496,4.18649694,198.12,197.96,38.36229913]
[1736347690497,3.24,198.12,198.03,177.24462103]
[1736347690723,3.24,198.12,198.05,177.24462103]
[1736347691107,3.24,198.12,198.05,137.1]
[1736347691310,0.94635829,198.11,197.99,40.14462103]
[1736347691674,0.94635829,198.11,197.97,40.14462103]
[1736347691791,0.94635829,198.11,197.97,137.1]
[1736347691792,21.5645,198.07,197.97,137.1]
[1736347691999,21.5645,198.07,197.97,40.14462103]
[1736347692305,1.5645,198.07,197.97,40.14462103]
[1736347692507,1.5645,198.07,197.96,137.1]
[1736347693016,6.2475,198.06,197.96,137.1]
[1736347693216,7.19435739,198.06,197.96,137.1]
[1736347694015,20.0,198.03,197.93,40.14462103]
[1736347694193,20.0,198.03,197.93,137.1]
[1736347694394,20.94696143,198.03,197.9,177.24462103]
[1736347694600,20.94696143,198.03,197.9,137.1]
[1736347694800,20.0,197.99,197.9,137.1]
[1736347695324,20.0,198.03,197.91,137.1]
[1736347695490,0.9470388,198.02,197.91,137.1]
[1736347695690,20.0,197.99,197.91,137.1]
[1736347695891,20.0,197.99,197.89,177.24462103]
[1736347696211,0.94713692,197.98,197.89,137.1]
[1736347696406,6.6376,197.97,197.88,45.44]
[1736347696606,3.22,197.96,197.88,45.44]
[1736347696831,20.0,197.94,197.88,45.44]
[1736347697012,20.0,197.93,197.84,137.1]
[1736347697210,0.94739664,197.92,197.82,137.1]
[1736347697412,0.94739664,197.92,197.8,137.1]
[1736347697711,0.94739664,197.92,197.79,40.14462103]
[1736347697915,20.0,197.88,197.77,177.24462103]
[1736347698104,20.0,197.88,197.77,40.14462103]
[1736347698421,20.0,197.83,197.73,40.14462103]
[1736347698605,6.143,197.86,197.78,40.14462103]
[1736347699006,6.143,197.86,197.71,58.1043]
[1736347699007,6.143,197.86,197.75,40.14462103]
[1736347699198,0.94777323,197.85,197.74,177.24462103]
[1736347699598,0.94777323,197.85,197.73,40.14462103]
[1736347699803,20.0,197.83,197.74,40.14462103]
[1736347700536,6.143,197.86,197.77,40.14462103]
[1736347700698,6.143,197.86,197.81,40.14462103]
[1736347700896,6.143,197.86,197.82,40.14462103]
[1736347701397,6.143,197.86,197.8,40.14462103]
[1736347701794,6.143,197.86,197.81,40.14462103]
[1736347702116,6.143,197.86,197.8,40.14462103]
[1736347702319,6.143,197.86,197.76,177.24462103]
[1736347702521,20.0,197.83,197.73,40.14462103]
[1736347703019,20.0,197.83,197.77,40.14462103]
[1736347703325,6.143,197.86,197.77,40.14462103]
[1736347703497,6.143,197.86,197.78,40.14462103]
[1736347703703,6.143,197.86,197.76,40.14462103]
[1736347703897,6.143,197.86,197.81,40.14462103]
[1736347704221,6.4731,197.94,197.85,40.14462103]
[1736347704419,0.94735065,197.93,197.81,40.14462103]
[1736347704607,0.94735065,197.93,197.8,40.14462103]
[1736347704810,26.4731,197.94,197.82,40.14462103]
[1736347705139,26.4731,197.94,197.86,40.14462103]
[1736347705140,6.4731,197.94,197.86,40.14462103]
[1736347705734,6.4731,197.94,197.84,40.14462103]
[1736347705890,20.0,197.91,197.82,40.14462103]
[1736347706097,20.0,197.91,197.84,40.14462103]
[1736347706295,20.0,197.91,197.82,177.24462103]
[1736347706492,6.4731,197.94,197.85,40.14462103]
[1736347706697,6.4731,197.94,197.87,40.14462103]
[1736347706911,6.4731,197.94,197.82,23.776884]
[1736347706912,6.4731,197.94,197.86,40.14462103]
[1736347707318,6.4731,197.94,197.82,23.776884]
[1736347707319,6.4731,197.94,197.89,40.14462103]
[1736347707508,6.4731,197.94,197.92,40.14462103]
[1736347707709,6.4731,197.94,197.91,40.14462103]
[1736347707905,6.2836,198.0,197.93,40.14462103]
[1736347708120,6.2836,198.0,197.94,40.14462103]
[1736347708299,6.2836,198.0,197.93,40.14462103]
[1736347708499,6.2836,198.0,197.91,40.14462103]
[1736347708702,7.23061501,198.0,197.9,40.14462103]
[1736347708897,20.0,197.97,197.89,40.14462103]
[1736347709101,23.776884,197.99,197.86,177.24462103]
[1736347709102,20.94718552,197.96,197.86,177.24462103]
[1736347709302,20.94718552,197.96,197.85,40.14462103]
[1736347709533,20.94718552,197.96,197.84,40.14462103]
[1736347710127,0.94718552,197.96,197.88,40.14462103]
[1736347710346,0.94737151,197.99,197.87,40.14462103]
[1736347710704,20.0,197.96,197.86,40.14462103]
[1736347711016,20.0,197.96,197.82,177.24462103]
[1736347711017,0.94726819,197.95,197.82,177.24462103]
[1736347711241,20.0,197.91,197.81,40.14462103]
[1736347711401,20.0,197.91,197.82,40.14462103]
[1736347711631,20.0,197.91,197.84,40.14462103]
[1736347711906,20.0,197.91,197.83,40.14462103]
[1736347712104,20.0,197.91,197.82,40.14462103]
[1736347712312,20.0,197.91,197.78,12.6403]
[1736347712313,20.0,197.87,197.78,137.1]
[1736347712516,4.16767815,197.86,197.76,40.14462103]
[1736347713311,4.16767815,197.86,197.75,40.14462103]
[1736347713517,23.776884,197.85,197.73,40.14462103]
[1736347713828,24.7247509,197.85,197.74,40.14462103]
[1736347714220,20.0,197.82,197.73,40.14462103]
[1736347714735,20.0,197.82,197.75,40.14462103]
[1736347714911,7.7332,197.9,197.75,40.14462103]
[1736347715119,20.0,197.87,197.75,40.14462103]
[1736347715453,20.0,197.82,197.74,40.14462103]
[1736347715646,20.0,197.82,197.76,40.14462103]
[1736347715828,20.0,197.82,197.75,40.14462103]
[1736347716059,20.0,197.82,197.73,40.14462103]
[1736347716257,20.0,197.82,197.74,40.14462103]
[1736347716568,20.0,197.82,197.68,12.6467]
[1736347716569,3.2,197.81,197.72,40.14462103]
[1736347716745,20.0,197.77,197.67,40.14462103]
[1736347716934,20.0,197.77,197.68,40.14462103]
[1736347717154,20.94815431,197.77,197.65,40.14462103]
[1736347717331,20.0,197.73,197.63,45.5]
[1736347717534,4.16840526,197.72,197.63,45.5]
[1736347717958,23.776884,197.69,197.58,40.14462103]
[1736347718133,24.72555671,197.69,197.58,40.14462103]
[1736347718540,0.94867271,197.69,197.59,40.14462103]
[1736347718765,6.1257,197.7,197.6,40.14462103]
[1736347719062,3.22,197.69,197.6,40.14462103]
[1736347719244,3.22,197.69,197.53,149.7556]
[1736347719245,4.16856511,197.69,197.59,40.14462103]
[1736347719472,20.0,197.66,197.57,40.14462103]
[1736347719627,20.0,197.66,197.56,40.14462103]
[1736347720053,20.0,197.66,197.57,40.14462103]
[1736347720350,0.948693,197.65,197.55,40.14462103]
[1736347720527,2.47865708,197.65,197.53,40.14462103]
[1736347720729,23.776884,197.64,197.52,40.14462103]
[1736347720920,0.94892873,197.63,197.52,40.14462103]
[1736347721339,24.72580642,197.64,197.54,40.14462103]
[1736347721563,1.5299,197.65,197.57,40.14462103]
[1736347722122,1.5299,197.65,197.56,40.14462103]
[1736347722327,1.5299,197.65,197.57,40.14462103]
[1736347722529,1.5299,197.65,197.58,40.14462103]
[1736347722739,1.5299,197.65,197.57,40.14462103]
[1736347723184,1.5299,197.65,197.51,211.89638313]
[1736347723185,1.5299,197.65,197.58,40.14462103]
[1736347723346,1.5299,197.65,197.57,40.14462103]
[1736347723646,1.5299,197.65,197.58,40.14462103]
[1736347723945,6.1257,197.7,197.51,211.89638313]
[1736347723946,6.1257,197.7,197.61,40.14462103]
[1736347724142,6.1257,197.7,197.51,199.23918313]
[1736347724143,6.1257,197.7,197.62,40.14462103]
[1736347724341,6.1257,197.7,197.6,40.14462103]
[1736347724645,0.94848518,197.69,197.6,40.14462103]
[1736347724814,24.72536918,197.69,197.58,40.14462103]
[1736347725013,20.0,197.67,197.59,40.14462103]
[1736347725224,20.0,197.67,197.6,40.14462103]
[1736347725625,6.1257,197.7,197.62,40.14462103]
[1736347725837,6.1257,197.7,197.63,40.14462103]
[1736347726038,6.1257,197.7,197.66,40.14462103]
[1736347726225,6.2473,197.75,197.69,40.14462103]
[1736347726616,6.2473,197.75,197.7,40.14462103]
[1736347726814,3.2,197.78,197.62,199.23918313]
[1736347726815,3.2,197.78,197.73,40.14462103]
[1736347727315,1.6488,197.79,197.74,40.14462103]
[1736347727528,1.6488,197.79,197.73,137.1]
[1736347727529,6.2473,197.81,197.76,40.14462103]
[1736347727726,6.2473,197.81,197.74,40.14462103]
[1736347727906,6.2473,197.81,197.75,40.14462103]
[1736347728320,6.2473,197.81,197.71,40.14462103]
[1736347728524,20.0,197.78,197.65,177.24462103]
[1736347728731,4.16823707,197.77,197.65,40.14462103]
[1736347728906,4.16823707,197.77,197.64,40.14462103]
[1736347729114,4.16823707,197.77,197.62,40.14462103]
[1736347729115,23.776884,197.76,197.62,40.14462103]
[1736347729319,0.94840747,197.75,197.61,137.1]
[1736347729518,3.2,197.76,197.69,40.14462103]
[1736347729726,3.2,197.76,197.68,40.14462103]
[1736347729912,20.0,197.78,197.67,40.14462103]
[1736347730109,3.22,197.77,197.68,40.14462103]
[1736347730311,3.22,197.77,197.65,157.1]
[1736347730312,3.22,197.77,197.69,40.14462103]
[1736347730515,3.22,197.77,197.67,40.14462103]
[1736347730931,4.16818056,197.77,197.66,40.14462103]
[1736347731240,4.16818056,197.77,197.65,137.1]
[1736347731443,23.776884,197.76,197.65,137.1]
[1736347731622,7.9948,197.72,197.61,40.14462103]
[1736347732216,7.9948,197.72,197.62,40.14462103]
[1736347733123,7.9948,197.72,197.63,40.14462103]
[1736347733320,7.9948,197.72,197.64,40.14462103]
[1736347733525,7.9948,197.72,197.62,40.14462103]
[1736347733913,7.9948,197.72,197.59,160.876884]
[1736347733914,7.9948,197.72,197.64,40.14462103]
[1736347734333,7.9948,197.72,197.66,40.14462103]
[1736347734549,6.4222,197.72,197.68,40.14462103]
[1736347734765,6.4222,197.72,197.67,40.14462103]
[1736347734917,6.4222,197.72,197.66,177.24462103]
[1736347735326,6.4222,197.72,197.66,137.1]
[1736347735533,6.4222,197.72,197.63,40.14462103]
[1736347735821,6.4222,197.72,197.67,40.14462103]
[1736347736023,6.4222,197.72,197.68,40.14462103]
[1736347736240,6.5195,197.78,197.69,40.14462103]
[1736347736443,6.5195,197.78,197.68,40.14462103]
[1736347736627,6.5195,197.78,197.69,40.14462103]
[1736347737033,7.46755046,197.78,197.67,40.14462103]
[1736347737245,20.0,197.75,197.66,40.14462103]
[1736347737742,20.0,197.71,197.6,40.14462103]
[1736347738044,0.94849887,197.7,197.56,177.24462103]
[1736347738464,6.2695,197.69,197.56,177.24462103]
[1736347738618,6.2695,197.69,197.58,40.14462103]
[1736347739350,6.2695,197.69,197.55,40.14462103]
[1736347739351,20.0,197.65,197.55,40.14462103]
[1736347739529,20.0,197.65,197.56,40.14462103]
[1736347739733,20.0,197.65,197.57,40.14462103]
[1736347739927,20.0,197.65,197.56,40.14462103]
[1736347740128,20.0,197.65,197.57,40.14462103]
[1736347740423,26.3691748,197.68,197.58,177.24462103]
[1736347740424,1.6437,197.68,197.58,177.24462103]
[1736347740642,1.6437,197.68,197.59,40.14462103]
[1736347741040,1.6437,197.68,197.6,40.14462103]
[1736347741627,1.6437,197.68,197.61,40.14462103]
[1736347741828,1.6437,197.68,197.62,177.24462103]
[1736347742036,6.2695,197.69,197.64,40.14462103]
[1736347742365,20.0,197.72,197.66,137.1]
[1736347742651,4.6704,197.74,197.66,137.1]
[1736347742950,4.6704,197.74,197.68,40.14462103]
[1736347743164,3.16,197.74,197.68,137.1]
[1736347743371,6.0573,197.75,197.7,177.24462103]
[1736347743731,6.0573,197.75,197.7,137.1]
[1736347743955,6.0573,197.75,197.71,40.14462103]
[1736347744133,1.5104,197.8,197.72,177.24462103]
[1736347744447,20.0,197.78,197.72,137.1]
[1736347745629,1.5104,197.8,197.72,175.46229913]
[1736347746032,1.5104,197.8,197.72,215.60692016]
[1736347746232,1.5104,197.8,197.74,40.14462103]
[1736347746545,6.3636,197.81,197.76,40.14462103]
[1736347746853,6.3636,197.81,197.77,40.14462103]
[1736347747051,20.0,197.83,197.77,40.14462103]
[1736347747351,20.0,197.83,197.77,137.1]
[1736347747566,0.94782328,197.82,197.74,137.1]
[1736347747764,23.776884,197.81,197.74,137.1]
[1736347747948,20.0,197.78,197.72,137.1]
[1736347748146,3.16,197.77,197.72,137.1]
[1736347748352,6.1852,197.76,197.67,137.1]
[1736347748745,3.16,197.81,197.72,40.14462103]
[1736347748946,3.16,197.81,197.73,40.14462103]
[1736347749255,3.16,197.81,197.74,40.14462103]
[1736347749464,6.1852,197.86,197.76,40.14462103]
[1736347749756,20.0,197.83,197.76,40.14462103]
[1736347749973,20.0,197.83,197.74,137.1]
[1736347750165,20.0,197.83,197.74,177.24462103]
[1736347750333,20.0,197.83,197.75,40.14462103]
[1736347750539,20.94780623,197.83,197.74,137.1]
[1736347750747,20.0,197.79,197.74,137.1]
[1736347750958,20.0,197.79,197.69,177.24462103]
[1736347751165,4.08811059,197.78,197.69,137.1]
[1736347751366,21.6288,197.73,197.66,137.1]
[1736347751557,21.6288,197.73,197.64,137.1]
[1736347751756,21.6288,197.73,197.64,40.14462103]
[1736347751947,21.6288,197.73,197.63,40.14462103]
[1736347752342,23.776884,197.72,197.63,137.1]
[1736347752549,20.0,197.69,197.63,137.1]
[1736347752855,23.14,197.69,197.63,137.1]
[1736347753050,3.14,197.69,197.63,137.1]
[1736347753563,3.16,197.72,197.65,40.14462103]
[1736347753768,21.6288,197.73,197.67,40.14462103]
[1736347754057,21.6288,197.73,197.67,177.24462103]
[1736347754265,21.6288,197.73,197.64,40.14462103]
[1736347754441,21.6288,197.73,197.63,137.1]
[1736347754442,21.6288,197.73,197.65,40.14462103]
[1736347754641,21.6288,197.73,197.67,137.1]
[1736347754837,6.4638,197.76,197.71,40.14462103]
[1736347755153,1.5656,197.8,197.73,40.14462103]
[1736347755350,20.0,197.79,197.73,40.14462103]
[1736347755662,1.5656,197.8,197.74,40.14462103]
[1736347755865,6.1463,197.82,197.73,40.14462103]
[1736347756163,6.1463,197.82,197.72,177.24462103]
[1736347756348,6.1463,197.82,197.74,137.1]
[1736347756954,20.0,197.79,197.74,137.1]
[1736347757554,6.1463,197.82,197.74,177.24462103]
[1736347757750,6.1463,197.82,197.74,137.1]
[1736347758086,5.0,197.9,197.74,137.1]
[1736347758087,6.0251,197.88,197.81,40.14462103]
[1736347758384,7.6815,197.95,197.87,40.14462103]
[1736347758543,0.94741364,197.98,197.88,40.14462103]
[1736347758849,0.94728062,198.0,197.92,20.0]
[1736347759042,6.97221769,198.01,197.91,40.14462103]
[1736347759355,20.0,197.98,197.87,175.46229913]
[1736347759854,0.94717685,197.97,197.89,137.1]
[1736347760062,0.94722691,197.97,197.91,137.1]
[1736347760263,3.24,197.96,197.87,175.46229913]
[1736347760771,0.94732725,197.95,197.87,175.46229913]
[1736347761160,0.94732725,197.95,197.87,137.1]
[1736347761776,0.94732725,197.95,197.81,137.1]
[1736347762087,20.0,197.91,197.81,137.1]
[1736347762243,5.0,198.04,197.84,40.14462103]
[1736347762446,4.16728518,198.0,197.84,40.14462103]
[1736347762665,20.0,197.93,197.85,137.1]
[1736347762866,20.0,197.93,197.84,137.1]
[1736347762867,3.22,197.92,197.84,137.1]
[1736347763054,4.16745353,197.92,197.84,137.1]
[1736347763250,20.0,197.88,197.81,137.1]
[1736347763569,20.0,197.88,197.76,40.14462103]
[1736347763570,20.0,197.83,197.76,137.1]
[1736347763757,4.16788012,197.82,197.74,137.1]
[1736347764158,3.24,197.81,197.74,137.1]
[1736347764371,23.776884,197.86,197.74,137.1]
[1736347764372,0.94797057,197.85,197.74,137.1]
[1736347764552,23.24,197.87,197.74,137.1]
[1736347764752,20.0,197.83,197.74,137.1]
[1736347765176,3.24,197.87,197.75,40.14462103]
[1736347765474,3.24,197.87,197.75,137.1]
[1736347765676,4.18774473,197.87,197.75,137.1]
[1736347765878,4.18774473,197.87,197.75,177.24462103]
[1736347766170,7.5221,197.91,197.79,40.14462103]
[1736347766379,7.5221,197.91,197.82,40.14462103]
[1736347766551,6.0019,197.91,197.85,40.14462103]
[1736347766995,6.0019,197.91,197.84,40.14462103]
[1736347767196,6.0019,197.91,197.82,177.24462103]
[1736347767476,6.0019,197.91,197.82,137.1]
[1736347767857,20.0,197.88,197.82,137.1]
[1736347770572,6.0019,197.91,197.82,137.1]
[1736347770784,6.0019,197.91,197.82,177.24462103]
[1736347770980,6.0019,197.91,197.82,137.1]
[1736347771167,0.94749445,197.9,197.82,137.1]
[1736347771354,6.0019,197.91,197.82,137.1]
[1736347771558,6.0019,197.91,197.82,177.24462103]
[1736347771780,6.0019,197.91,197.82,137.1]
[1736347771958,6.94936625,197.91,197.82,137.1]
[1736347772358,6.0019,197.91,197.82,137.1]
[1736347772557,6.0019,197.91,197.83,40.14462103]
[1736347772758,6.0019,197.91,197.82,177.24462103]
[1736347772956,6.0019,197.91,197.83,40.14462103]
[1736347773153,6.0019,197.91,197.82,137.1]
[1736347773365,20.0,197.88,197.82,137.1]
[1736347774364,20.0,197.88,197.79,137.1]
[1736347774987,4.18771185,197.87,197.79,137.1]
[1736347775162,3.24,197.87,197.79,137.1]
[1736347776268,2.5241416,197.86,197.79,137.1]
[1736347776477,1.5765,197.86,197.79,137.1]
[1736347777664,6.0019,197.91,197.8,239.38380416]
[1736347777981,6.2392,197.97,197.87,40.14462103]
[1736347778180,7.1863419,197.97,197.86,137.1]
[1736347778365,20.0,197.94,197.87,137.1]
[1736347778788,6.2392,197.97,197.87,137.1]
[1736347779086,7.186346,197.97,197.87,137.1]
[1736347779285,23.776884,197.96,197.84,137.1]
[1736347779480,0.94743611,197.95,197.84,137.1]
[1736347779671,20.0,197.89,197.79,137.1]
[1736347779865,6.5028,197.87,197.79,137.1]
[1736347780065,7.4505609,197.87,197.79,137.1]
[1736347780270,6.5028,197.87,197.79,137.1]
[1736347780482,20.0,197.84,197.74,137.1]
[1736347780703,20.94783621,197.84,197.73,175.46229913]
[1736347781285,20.94783621,197.84,197.72,137.1]
[1736347781484,43.776884,197.83,197.68,137.1]
[1736347781667,20.0,197.77,197.68,137.1]
[1736347781864,4.18829815,197.76,197.68,137.1]
[1736347782060,4.18829815,197.76,197.67,137.1]
[1736347782478,3.24,197.75,197.68,137.1]
[1736347784381,0.9482683,197.74,197.65,182.64]
[1736347784589,20.0,197.72,197.65,182.64]
[1736347785184,20.0,197.72,197.65,182.47184]
[1736347785379,20.9484386,197.72,197.61,137.1]
[1736347785689,20.0,197.68,197.59,137.1]
[1736347785865,6.2508,197.71,197.59,137.1]
[1736347786073,3.22,197.7,197.6,63.92150503]
[1736347786687,3.22,197.7,197.6,23.776884]
[1736347786900,3.22,197.7,197.59,137.1]
[1736347787085,20.0,197.68,197.59,137.1]
[1736347787792,20.94865209,197.68,197.59,137.1]
[1736347787976,20.79122207,197.68,197.59,137.1]
[1736347788175,19.84256998,197.68,197.59,137.1]
[1736347788374,19.84256998,197.68,197.59,177.24462103]
[1736347788592,19.84256998,197.68,197.6,40.14462103]
[1736347788789,3.22,197.7,197.6,63.92150503]
[1736347788997,3.22,197.7,197.62,23.776884]
[1736347789172,3.22,197.7,197.62,40.14462103]
[1736347789371,3.22,197.7,197.61,137.1]
[1736347789876,4.16846513,197.7,197.61,137.1]
[1736347790070,20.0,197.68,197.58,137.1]
[1736347790265,0.94873004,197.67,197.58,137.1]
[1736347790491,20.0,197.68,197.58,137.1]
[1736347790671,3.22,197.7,197.58,177.24462103]
[1736347791072,3.2,197.7,197.59,40.14462103]
[1736347791274,3.2,197.7,197.6,40.14462103]
[1736347792296,4.14843701,197.7,197.58,137.1]
[1736347792512,20.0,197.68,197.58,137.1]
[1736347792670,20.94867093,197.68,197.58,137.1]
[1736347793780,0.94859934,197.67,197.58,137.1]
[1736347794206,20.0,197.68,197.58,137.1]
[1736347794503,0.94859481,197.7,197.58,177.24462103]
[1736347794682,6.2508,197.71,197.59,40.14462103]
[1736347795083,6.2508,197.71,197.6,40.14462103]
[1736347795288,20.0,197.68,197.58,137.1]
[1736347796095,20.0,197.68,197.58,177.24462103]
[1736347796896,20.0,197.68,197.58,137.1]
[1736347797084,20.0,197.68,197.6,40.14462103]
[1736347797269,20.0,197.68,197.59,201.02150503]
[1736347797596,6.2508,197.71,197.63,177.24462103]
[1736347797772,6.2508,197.71,197.64,63.92150503]
[1736347798376,6.2508,197.71,197.64,177.24462103]
[1736347798573,6.2508,197.71,197.64,137.1]
[1736347799408,9.8067,197.77,197.67,63.92150503]
[1736347799614,9.8067,197.77,197.68,23.776884]
[1736347799898,5.0,197.88,197.67,177.24462103]
[1736347799899,6.4369,197.82,197.71,40.14462103]
[1736347800192,20.0,197.79,197.71,137.1]
[1736347800579,20.94797523,197.79,197.71,137.1]
[1736347800992,20.0,197.75,197.67,137.1]
[1736347801174,6.1015,197.7,197.61,175.46229913]
[1736347801372,20.0,197.67,197.61,137.1]
[1736347801579,4.12864236,197.66,197.55,175.46229913]
[1736347801984,24.12864236,197.66,197.55,137.1]
[1736347802197,20.0,197.62,197.55,137.1]
[1736347802600,4.12864236,197.66,197.55,137.1]
[1736347802799,46.976884,197.65,197.52,137.1]
[1736347803007,44.72583923,197.64,197.52,137.1]
[1736347803185,20.0,197.61,197.52,137.1]
[1736347803381,1.5331,197.63,197.52,137.1]
[1736347803580,1.5331,197.63,197.52,177.24462103]
[1736347803798,1.5331,197.63,197.53,23.776884]
[1736347803982,1.5331,197.63,197.54,40.14462103]
[1736347804178,20.0,197.67,197.56,40.14462103]
[1736347804399,1.5725,197.69,197.59,63.92150503]
[1736347804602,6.1015,197.7,197.63,40.14462103]
[1736347804795,6.1015,197.7,197.61,40.14462103]
[1736347804995,6.1015,197.7,197.63,137.1]
[1736347807301,0.94856069,197.69,197.63,137.1]
[1736347807488,6.1015,197.7,197.63,137.1]
[1736347808083,20.0,197.67,197.6,137.1]
[1736347808515,6.1015,197.7,197.62,40.14462103]
[1736347808696,6.4561,197.75,197.64,40.14462103]
[1736347809111,6.4561,197.75,197.67,23.776884]
[1736347809309,6.4561,197.75,197.67,102.28380416]
[1736347809615,3.22,197.79,197.7,63.92150503]
[1736347809787,3.22,197.79,197.71,40.14462103]
[1736347809987,6.6194,197.8,197.71,23.776884]
[1736347810196,6.6194,197.8,197.71,160.876884]
[1736347810389,6.6194,197.8,197.65,15.8686]
[1736347810390,6.6194,197.8,197.69,23.776884]
[1736347810589,6.6194,197.8,197.69,160.876884]
[1736347810915,6.6194,197.8,197.69,137.1]
[1736347811217,20.0,197.77,197.69,137.1]
[1736347811405,23.2,197.77,197.69,137.1]
[1736347811797,0.9480961,197.76,197.69,137.1]
[1736347812007,0.9480961,197.76,197.68,137.1]
[1736347812322,20.0,197.77,197.68,137.1]
[1736347812700,0.94811404,197.76,197.68,137.1]
[1736347813094,20.0,197.77,197.68,137.1]
[1736347813495,0.94821173,197.76,197.68,137.1]
[1736347813909,20.0,197.77,197.68,137.1]
[1736347814116,0.94820092,197.76,197.68,137.1]
[1736347814815,20.94820092,197.76,197.68,137.1]
[1736347815016,20.0,197.72,197.68,137.1]
[1736347815231,20.0,197.72,197.62,23.776884]
[1736347815514,3.2,197.74,197.63,63.92150503]
[1736347815706,3.2,197.74,197.68,137.1]
[1736347815913,3.2,197.74,197.63,23.776884]
[1736347816215,3.2,197.74,197.64,175.46229913]
[1736347816404,3.2,197.74,197.64,38.36229913]
[1736347818412,3.2,197.74,197.65,199.23918313]
[1736347818619,3.2,197.74,197.65,239.38380416]